fUST/lending_fUST_20251219
["ID","MTS","AMOUNT","RATE_DAILY","PERIOD"]
[399133024,1766121934623,150.0,0.00010584,2]
[399133025,1766121934993,150.0,0.00011088,2]
[399133026,1766121935389,150.0,0.00011592,2]
[399133027,1766121935803,150.0,0.00012096,2]
[399133028,1766121961290,-500.0,0.00013699,2]
[399133029,1766121961325,-79.43836,0.00013888,2]
[399133030,1766121965031,198.5,0.00013699,2]
[399133031,1766121965108,500.0,0.00013273,2]
[399133032,1766121965165,1000.0,0.00013821,2]
[399133033,1766121965490,500.0,0.00013699,2]
[399133034,1766121978185,-150.0,0.00014028,2]
[399133035,1766121978347,-600.0,0.00014221,2]
[399133036,1766121978401,-300.0,0.00014246,2]
[399133037,1766121978435,-1000.0,0.00014247,2]
[399133038,1766121978468,-500.0,0.00014247,2]
[399133039,1766121978501,-283.57468351,0.00014247,2]
[399133040,1766121978536,-175.94373406,0.00014247,2]
[399133041,1766121978577,-500.0,0.00014247,2]
[399133042,1766121978611,-500.0,0.00014247,2]
[399133043,1766121978648,-188.74662648,0.00014247,2]
[399133044,1766121978682,-603.4799119,0.00014247,2]
[399133045,1766121990106,-5000.0,0.00014104,2]
[399133046,1766122008887,-396.5200881,0.00014247,2]
[399133047,1766122008920,-1000.0,0.00014247,2]
[399133048,1766122008951,-1000.0,0.00014247,2]
[399133049,1766122008980,-962.96160755,0.00014247,2]
[399133050,1766122009010,-190.40973251,0.00014247,2]
[399133051,1766122009040,-1400.22714368,0.00014368,2]
[399133052,1766122016988,-5000.0,0.00014104,2]
[399133053,1766122042122,-5000.0,0.0001314,2]
[399133054,1766122049277,-500.0,0.00013273,2]
[399133055,1766122049307,-500.0,0.00013273,2]
[399133056,1766122049336,-300.0,0.00013673,2]
[399133057,1766122049364,-500.0,0.00013699,2]
[399133058,1766122049394,-500.0,0.00013699,2]
[399133059,1766122049423,-500.0,0.00013699,2]
[399133060,1766122049566,-500.0,0.00013699,2]
[399133061,1766122049596,-500.0,0.00013699,2]
[399133062,1766122049627,-1000.0,0.00013821,2]
[399133065,1766122052009,-415.03838415,0.00013821,2]
[399133066,1766122052041,-600.0,0.00014221,2]
[399133067,1766122052072,-3164.98108662,0.00014223,2]
[399133068,1766122072000,68254.62452441,0.00015,120]
[399133091,1766122116614,300.0,2.5e-05,30]
[399133122,1766122157230,-447.89853099,0.00013273,2]
[399133124,1766122157262,-500.0,0.00013273,2]
[399133126,1766122157290,-500.60980184,0.00013273,2]
[399133127,1766122157325,-500.0,0.00013273,2]
[399133129,1766122157362,-500.0,0.00013273,2]
[399133139,1766122162423,300.0,0.00013673,2]
[399133167,1766122225331,1639.97105846,0.00013691,2]
[399133204,1766122231731,-500.0,0.00013699,2]
[399133206,1766122231740,-500.0,0.00013699,2]
[399133208,1766122231750,-27.41824278,0.00013699,2]
[399133210,1766122231761,-356.90616913,0.00013699,2]
[399133212,1766122231773,-115.67558809,0.00013699,2]
[399133214,1766122231783,-500.0,0.00013699,2]
[399133216,1766122231792,-300.0,0.0001382,2]
[399133218,1766122231802,-1000.0,0.00013821,2]
[399133220,1766122231812,-1000.0,0.00013821,2]
[399133223,1766122231823,-1000.0,0.00013821,2]
[399133227,1766122231833,-3731.3383893,0.00014081,2]
[399133230,1766122231844,-1268.6616107,0.00014081,2]
[399133233,1766122231854,-150.0,0.00014152,2]
[399133235,1766122231864,-600.0,0.00014221,2]
[399133237,1766122231873,-5801.40933,0.00014246,12]
[399133239,1766122231882,-1000.0,0.00014247,2]
[399133241,1766122231891,-1000.0,0.00014247,2]
[399133243,1766122231901,-745.29663388,0.00014368,2]
[399133245,1766122231910,-1500.0,0.00014368,2]
[399133247,1766122231919,-1500.0,0.00014368,2]
[399133249,1766122231929,-1500.0,0.00014368,2]
[399133251,1766122231938,-315.460953,0.00014372,2]
[399133253,1766122231948,-300.0,0.0001453,2]
[399133255,1766122231957,-300.0,0.0001453,2]
[399133257,1766122231967,-300.0,0.0001453,2]
[399133259,1766122231976,-300.0,0.0001453,2]
[399133261,1766122231985,-300.0,0.0001453,2]
[399133263,1766122231995,-300.0,0.0001453,2]
[399133265,1766122232004,-300.0,0.0001453,2]
[399133267,1766122232013,-300.0,0.0001453,2]
[399133269,1766122232022,-300.0,0.0001453,2]
[399133271,1766122232033,-300.0,0.0001453,2]
[399133273,1766122232042,-300.0,0.0001453,2]
[399133275,1766122232051,-40.42591493,0.0001453,2]
[399133277,1766122232063,-259.57408507,0.0001453,2]
[399133279,1766122232072,-265.49348767,0.0001453,2]
[399133368,1766122233377,3163.02227588,0.00013691,2]
[399133369,1766122233406,1836.97772412,0.00013691,2]
[399133434,1766122237906,-34.50651233,0.0001453,2]
[399133436,1766122237915,-300.0,0.0001453,2]
[399133438,1766122237926,-300.0,0.0001453,2]
[399133440,1766122237935,-833.89892426,0.00014768,2]
[399133442,1766122237946,-143.11652616,0.00014768,2]
[399133444,1766122237955,-500.0,0.00014794,2]
[399133446,1766122237965,-696.89992884,0.00014795,2]
[399133448,1766122237976,-677.42648617,0.00014795,2]
[399133653,1766122242908,-94.46591581,0.00014795,2]
[399133654,1766122242917,-1500.0,0.00014795,2]
[399133655,1766122242927,-193.881,0.00014795,2]
[399133656,1766122242937,-23126.73602448,0.00014825,2]
[399133657,1766122242948,-14993.97947592,0.00014825,2]
[399133658,1766122242957,-151.0,0.00014825,2]
[399133659,1766122242966,-151.0,0.00014825,2]
[399133660,1766122242975,-344.62703,0.00014825,2]
[399133661,1766122242985,-344.62703,0.00014825,2]
[399133662,1766122242994,-344.62703,0.00014825,2]
[399133663,1766122243003,-133.33757599,0.00014825,2]
[399133664,1766122243015,-211.28945401,0.00014825,2]
[399133665,1766122243025,-99.71054599,0.00014916,2]
[399133666,1766122243106,-43.94430021,0.00014916,2]
[399133667,1766122243118,-1356.3451538,0.00014916,2]
[399133668,1766122243128,-599.77285632,0.00014916,2]
[399133669,1766122243138,-487.50297775,0.00015,2]
[399133670,1766122243148,-600.0,0.00015197,2]
[399133671,1766122243158,-1204.75936543,0.00015272,2]
[399133672,1766122243168,-1661.07916359,0.00015342,2]
[399133673,1766122243177,-221.27817877,0.00016085,2]
[399133674,1766122243187,-177.0,0.00016152,2]
[399133675,1766122243201,-887.39028607,0.00016528,2]
[399133676,1766122243211,-720.0,0.00016717,2]
[399133677,1766122243221,-160.0,0.00016756,2]
[399133678,1766122243231,-151.0,0.000169,2]
[399133680,1766122243240,-887.39028607,0.00017003,2]
[399133682,1766122243250,-460.03968099,0.00017013,2]
[399133684,1766122243259,-398.30072178,0.00017072,2]
[399133685,1766122243270,-260.0,0.00017304,2]
[399133686,1766122243280,-500.0,0.00017478,2]
[399133687,1766122243289,-358.9520666,0.00017478,2]
[399133688,1766122243299,-256.43568754,0.00017478,2]
[399133689,1766122243309,-500.0,0.00017478,2]
[399133690,1766122243319,-887.39028607,0.00017479,2]
[399133691,1766122243329,-460.03968099,0.00017735,2]
[399133692,1766122243338,-360.0,0.00017851,2]
[399133693,1766122243348,-887.39028607,0.00017954,2]
[399133694,1766122243358,-196.17960228,0.00018052,2]
[399133695,1766122243367,-708.09017206,0.00018059,2]
[399133696,1766122243377,-204.0,0.00018152,2]
[399133697,1766122243386,-2000.0,0.00018246,2]
[399133698,1766122243395,-1308.17486619,0.00018246,2]
[399133712,1766122249314,-871.85190565,0.00014725,2]
[399133713,1766122254959,150.0,9.735e-05,2]
[399133714,1766122255367,150.0,0.00010199,2]
[399133715,1766122255776,150.0,0.00010662,2]
[399133716,1766122256192,150.0,0.00011126,2]
[399133717,1766122256596,150.0,0.00011589,2]
[399133718,1766122257007,164.73,0.00012053,2]
[399133719,1766122257452,192.18,0.00012517,2]
[399133720,1766122257877,219.63,0.0001298,2]
[399133721,1766122258306,247.09,0.00013444,2]
[399133722,1766122324103,500.0,0.00013273,2]
[399133723,1766122324719,150.0,8.919e-05,2]
[399133724,1766122324968,500.0,0.00013273,2]
[399133725,1766122325118,150.0,9.343e-05,2]
[399133726,1766122325267,500.0,0.00013273,2]
[399133727,1766122325999,150.0,9.768e-05,2]
[399133728,1766122326439,150.0,0.00010193,2]
[399133729,1766122386292,500.0,0.00013273,2]
[399133730,1766122388264,500.0,0.00013273,2]
[399133741,1766122457201,3489.40227588,0.00013691,2]
[399133742,1766122457233,1510.59772412,0.00013691,2]
[399133744,1766122465364,151.0,0.00013691,2]
[399133745,1766122480618,5000.0,0.00013699,2]
[399133746,1766122504322,5000.0,0.00013699,2]
[399133747,1766122513171,0.01,0.00013273,2]
[399133748,1766122513198,499.99,0.00013273,2]
[399133749,1766122514526,577.5333318,0.00013273,2]
[399133750,1766122514976,500.0,0.00013273,2]
[399133751,1766122525999,500.0,0.00013273,2]
[399133752,1766122527690,792.14988015,0.00013699,2]
[399133753,1766122528294,500.0,0.00013273,2]
[399133754,1766122529432,500.0,0.00013273,2]
[399133755,1766122562858,300.0,0.00013698,2]
[399133756,1766122569010,500.0,0.00013273,2]
[399133760,1766122602466,5330.33678805,0.00013699,2]
[399133761,1766122602492,926.66321195,0.00013699,2]
[399133762,1766122622482,300.0,0.00013698,2]
[399133763,1766122624088,501.07032182,0.00013273,2]
[399133764,1766122626850,500.0,0.00013273,2]
[399133765,1766122631241,500.0,0.00013273,2]
[399133766,1766122636193,422.4666682,0.00013273,2]
[399133767,1766122637057,500.0,0.00013273,2]
[399133768,1766122642016,500.0,0.00013273,2]
[399133769,1766122647647,500.0,0.00013273,2]
[399133770,1766122649853,450.41557237,0.00013273,2]
[399133771,1766122651273,500.0,0.00013273,2]
[399133772,1766122664987,-500.0,0.00013699,2]
[399133773,1766122665019,-500.0,0.00013699,2]
[399133774,1766122665050,-500.0,0.00013699,2]
[399133775,1766122665081,-501.59990885,0.00013699,2]
[399133776,1766122665115,-500.0,0.00013699,2]
[399133777,1766122665152,-500.0,0.00013699,2]
[399133778,1766122665186,-500.0,0.00013699,2]
[399133779,1766122665218,-500.0,0.00013699,2]
[399133780,1766122665253,-500.0,0.00013699,2]
[399133781,1766122665290,-150.0,0.0001376,2]
[399133782,1766122673997,-1000.0,0.00013821,2]
[399133783,1766122674031,-316.57593666,0.00013821,2]
[399133784,1766122674069,-1000.0,0.00013821,2]
[399133785,1766122674101,-1000.0,0.00013821,2]
[399133786,1766122674133,-696.65113633,0.00013821,2]
[399133787,1766122674167,-500.0,0.00013821,2]
[399133788,1766122674201,-473.55585402,0.00013821,2]
[399133789,1766122690930,500.0,0.00013273,2]
[399133790,1766122691544,500.0,0.00013273,2]
[399133794,1766122701102,-500.0,0.00013699,2]
[399133795,1766122701134,-334.77492936,0.00013699,2]
[399133796,1766122701164,-26.44414598,0.00013821,2]
[399133797,1766122701194,-500.0,0.00013821,2]
[399133798,1766122701224,-500.0,0.00013821,2]
[399133799,1766122701255,-1000.0,0.00013821,2]
[399133800,1766122701286,-163.29801542,0.00013973,2]
[399133801,1766122701319,-1525.78765788,0.00014096,2]
[399133802,1766122701354,-300.0,0.00014096,2]
[399133803,1766122707813,-300.0,0.00014096,2]
[399133804,1766122707860,-300.0,0.00014096,2]
[399133805,1766122707906,-300.0,0.00014096,2]
[399133806,1766122707950,-300.0,0.00014096,2]
[399133807,1766122707996,-300.0,0.00014096,2]
[399133808,1766122708043,-300.0,0.00014096,2]
[399133809,1766122708089,-300.0,0.00014096,2]
[399133810,1766122708132,-300.0,0.00014096,2]
[399133811,1766122708174,-300.0,0.00014096,2]
[399133812,1766122708222,-300.0,0.00014096,2]
[399133813,1766122708266,-300.0,0.00014096,2]
[399133814,1766122708310,-300.0,0.00014096,2]
[399133815,1766122708354,-300.0,0.00014096,2]
[399133816,1766122708396,-300.0,0.00014096,2]
[399133817,1766122708435,-150.0,0.00014171,2]
[399133818,1766122708476,-500.0,0.00014246,2]
[399133819,1766122709389,150.0,9.212e-05,2]
[399133820,1766122709828,150.0,9.65e-05,2]
[399133821,1766122710328,150.0,0.00010089,2]
[399133822,1766122710687,150.0,0.00010528,2]
[399133823,1766122711055,150.0,0.00010966,2]
[399133824,1766122711480,150.0,0.00011405,2]
[399133825,1766122712081,150.0,0.00011844,2]
[399133826,1766122712300,163.63,0.00012282,2]
[399133827,1766122714088,-184.08,0.00012721,2]
[399133828,1766122714123,-204.54,0.0001316,2]
[399133829,1766122714154,-500.0,0.00014246,2]
[399133830,1766122714186,-500.0,0.00014246,2]
[399133831,1766122714218,-500.0,0.00014246,2]
[399133832,1766122714248,-500.0,0.00014246,2]
[399133833,1766122743224,434.17757369,0.00013273,2]
[399133834,1766122743266,500.0,0.00013273,2]
[399133835,1766122764249,300.0,0.00013673,2]
[399133836,1766122764338,-500.0,0.00013699,2]
[399133837,1766122764370,-500.34936785,0.00013699,2]
[399133838,1766122764401,-500.0,0.00013699,2]
[399133839,1766122764432,-500.0,0.00013699,2]
[399133840,1766122764462,-1052.41198141,0.00013821,2]
[399133841,1766122771046,-510.77032884,0.00013699,2]
[399133842,1766122771076,-500.0,0.00013699,2]
[399133843,1766122771104,-3718.16451541,0.00014104,2]
[399133846,1766122777300,150.0,0.00011993,2]
[399133847,1766122779636,-150.0,0.00012564,2]
[399133848,1766122779674,-150.0,0.00013136,2]
[399133849,1766122779803,-150.0,0.00013707,2]
[399133850,1766122779839,-542.1403115,0.00014104,2]
[399133851,1766122779872,-300.0,0.00014221,2]
[399133852,1766122779907,-500.0,0.00014246,2]
[399133853,1766122779940,-653.20136075,0.00014247,2]
[399133854,1766122779974,-1000.0,0.00014247,2]
[399133855,1766122780009,-1000.0,0.00014247,2]
[399133856,1766122780046,-500.0,0.00014247,2]
[399133857,1766122782540,-863.65694537,0.00014368,2]
[399133858,1766122782569,-1500.0,0.00014368,2]
[399133859,1766122782601,-300.0,0.0001453,2]
[399133860,1766122782632,-300.0,0.0001453,2]
[399133861,1766122782663,-300.0,0.0001453,2]
[399133862,1766122782693,-300.0,0.0001453,2]
[399133863,1766122782723,-300.0,0.0001453,2]
[399133864,1766122782753,-300.0,0.0001453,2]
[399133865,1766122782784,-300.0,0.0001453,2]
[399133866,1766122782814,-300.0,0.0001453,2]
[399133867,1766122782844,-172.69610926,0.0001453,2]
[399133868,1766122792693,-2462.426498,0.00013929,2]
[399133869,1766122792737,-127.30389074,0.0001453,2]
[399133870,1766122792769,-300.0,0.0001453,2]
[399133871,1766122792930,-300.0,0.0001453,2]
[399133872,1766122792962,-300.0,0.0001453,2]
[399133873,1766122792993,-300.0,0.0001453,2]
[399133874,1766122793024,-300.0,0.0001453,2]
[399133875,1766122793055,-300.0,0.0001453,2]
[399133876,1766122803301,500.0,0.00013273,2]
[399133877,1766122803379,523.46350375,0.00013821,2]
[399133878,1766122804460,500.0,0.00013273,2]
[399133879,1766122804493,500.0,0.00013821,2]
[399133880,1766122806172,500.0,0.00013273,2]
[399133881,1766122806285,500.0,0.00013821,2]
[399133883,1766122807506,500.0,0.00013273,2]
[399133884,1766122807540,500.0,0.00013821,2]
[399133885,1766122807570,234.77492936,0.00014247,2]
[399133886,1766122807625,500.0,0.00013699,2]
[399133887,1766122807994,500.0,0.00013699,2]
[399133888,1766122808050,866.36546877,0.00014247,2]
[399133891,1766122810501,500.0,0.00013699,2]
[399133892,1766122810554,969.95575667,0.00014247,2]
[399133893,1766122842836,150.0,0.00011978,2]
[399133894,1766122843256,150.0,0.00012548,2]
[399133895,1766122863293,500.0,0.00013273,2]
[399133896,1766122863350,500.0,0.00013821,2]
[399133897,1766122864407,500.0,0.00013699,2]
[399133898,1766122864477,1000.0,0.00014247,2]
[399133899,1766122864927,500.0,0.00013273,2]
[399133900,1766122864961,1000.0,0.00013821,2]
[399133901,1766122865573,160.92940252,0.00013699,2]
[399133902,1766122869269,500.0,0.00013273,2]
[399133903,1766122871134,500.0,0.00013699,2]
[399133904,1766122871188,1000.0,0.00014247,2]
[399133905,1766122871687,500.0,0.00013699,2]
[399133906,1766122871725,1000.0,0.00014247,2]
[399133907,1766122873081,500.0,0.00013273,2]
[399133908,1766122873133,1000.0,0.00013821,2]
[399133909,1766122873187,539.08059748,0.00014368,2]
[399133910,1766122876312,-627.14854391,0.00013273,2]
[399133911,1766122876351,-500.0,0.00013699,2]
[399133912,1766122876385,-1000.0,0.00014247,2]
[399133913,1766122876418,-965.42322414,0.00014368,2]
[399133914,1766122876654,500.0,0.00013699,2]
[399133915,1766122876711,500.73063204,0.00014247,2]
[399133916,1766122878451,500.0,0.00013699,2]
[399133917,1766122878937,500.0,0.00013699,2]
[399133918,1766122878967,1000.0,0.00014247,2]
[399133919,1766122879132,300.0,0.00013673,2]
[399133920,1766122879247,514.13583186,0.00014221,2]
[399133921,1766122883595,500.0,0.00013273,2]
[399133922,1766122885190,500.0,0.00013273,2]
[399133923,1766122889577,5000.0,0.00013699,2]
[399133924,1766122907648,150.0,0.00012301,2]
[399133925,1766122908081,150.0,0.00012887,2]
[399133926,1766122908499,150.0,0.00013473,2]
[399133927,1766122912932,3550.01,0.00013699,2]
[399133928,1766122912966,1449.99,0.00013699,2]
[399133930,1766122928507,500.0,0.00013273,2]
[399133934,1766122933870,500.0,0.00013273,2]
[399133935,1766122937004,5000.0,0.00013699,2]
[399133936,1766122960434,429.09,0.00013699,2]
[399133937,1766122974026,150.0,0.00012018,2]
[399133938,1766122974331,150.0,0.0001259,2]
[399133939,1766122974721,150.0,0.00013162,2]
[399133940,1766122982661,300.0,0.00013698,2]
[399133941,1766122983987,500.0,0.00013273,2]
[399133942,1766122985241,500.0,0.00013273,2]
[399133943,1766122985497,370.93,0.00013273,2]
[399133944,1766122985520,129.07,0.00013273,2]
[399133945,1766122995386,536.42192957,0.00013273,2]
[399133946,1766123000576,300.0,0.00013673,2]
[399133947,1766123005544,500.0,0.00013273,2]
[399133948,1766123006159,502.0021657,0.00013273,2]
[399133949,1766123046628,500.0,0.00013273,2]
[399133950,1766123046864,500.0,0.00013273,2]
[399133952,1766123048327,500.0,0.00013273,2]
[399133953,1766123050116,150.0,0.0001225,2]
[399133954,1766123050518,150.0,0.00012833,2]
[399133955,1766123050954,150.0,0.00013417,2]
[399133956,1766123052279,500.0,0.00013273,2]
[399133966,1766123102193,300.0,0.00013698,2]
[399133969,1766123106903,500.0,0.00013273,2]
[399133970,1766123110310,500.0,0.00013273,2]
[399133971,1766123115506,469.93454535,0.00013273,2]
[399133972,1766123119539,500.0,0.00013273,2]
[399133973,1766123119965,500.0,0.00013273,2]
[399133974,1766123125294,300.0,0.00013673,2]
[399133975,1766123126982,150.0,0.00012023,2]
[399133976,1766123127383,150.0,0.00012596,2]
[399133977,1766123127794,150.0,0.00013168,2]
[399133980,1766123162517,300.0,0.00013698,2]
[399133981,1766123167789,500.0,0.00013273,2]
[399133983,1766123171707,500.0,0.00013273,2]
[399133985,1766123198664,150.0,0.0001203,2]
[399133986,1766123199057,150.0,0.00012603,2]
[399133987,1766123199608,150.0,0.00013176,2]
[399133988,1766123222883,300.0,0.00013698,2]
[399133989,1766123230178,12.58135938,0.00013273,2]
[399133990,1766123230204,487.41864062,0.00013273,2]
[399133991,1766123239744,500.0,0.00013273,2]
[399133992,1766123240395,500.0,0.00013273,2]
[399133993,1766123244594,300.0,0.00013673,2]
[399133994,1766123271701,150.0,0.00011993,2]
[399133995,1766123272100,150.0,0.00012564,2]
[399133996,1766123272496,221.05,0.00013135,2]
[399133997,1766123289343,500.0,0.00013273,2]
[399133999,1766123292640,500.0,0.00013273,2]
[399134003,1766123342385,300.0,0.00013698,2]
[399134005,1766123352733,500.0,0.00013273,2]
[399134006,1766123353299,150.0,0.00011802,2]
[399134007,1766123353729,150.0,0.00012364,2]
[399134008,1766123354141,201.15,0.00012926,2]
[399134009,1766123354545,268.2,0.00013488,2]
[399134010,1766123363436,500.0,0.00013273,2]
[399134011,1766123367311,300.0,0.00013673,2]
[399134084,1766123407063,646.05228719,0.00013273,2]
[399134090,1766123412251,500.0,0.00013273,2]
[399134091,1766123412472,500.0,0.00013273,2]
[399134106,1766123431827,-500.0,0.00013699,2]
[399134108,1766123431837,-500.0,0.00013699,2]
[399134110,1766123431846,-500.0,0.00013699,2]
[399134111,1766123431856,-500.0,0.00013699,2]
[399134113,1766123431866,-500.0,0.00013699,2]
[399134115,1766123431880,-500.0,0.00013699,2]
[399134116,1766123431889,-500.0,0.00013699,2]
[399134117,1766123431898,-500.0,0.00013699,2]
[399134118,1766123431907,-500.0,0.00013699,2]
[399134119,1766123431917,-150.0,0.00013702,2]
[399134120,1766123431927,-314.34912647,0.00013821,2]
[399134121,1766123431935,-774.02580549,0.00013821,2]
[399134122,1766123431944,-518.30990885,0.00013821,2]
[399134123,1766123431954,-500.0,0.00013821,2]
[399134124,1766123431964,-1000.0,0.00013821,2]
[399134125,1766123431973,-643.44229843,0.00013821,2]
[399134127,1766123431982,-1000.0,0.00013821,2]
[399134128,1766123431991,-1000.0,0.00013821,2]
[399134130,1766123432001,-432.86371902,0.00013821,2]
[399134133,1766123432016,-567.13628098,0.00013821,2]
[399134134,1766123432025,-685.86416814,0.00014221,2]
[399134135,1766123432034,-500.0,0.00014246,2]
[399134136,1766123432043,-26.00465271,0.00014246,2]
[399134137,1766123432062,-324.13718502,0.00014246,2]
[399134138,1766123432071,-500.0,0.00014246,2]
[399134139,1766123432080,-0.86281498,0.00014246,2]
[399134140,1766123435051,150.0,0.00011562,2]
[399134141,1766123435462,150.0,0.00012112,2]
[399134142,1766123435871,171.78,0.00012663,2]
[399134143,1766123436258,229.03,0.00013213,2]
[399134148,1766123437873,-286.29,0.00013764,2]
[399134149,1766123437883,-499.13718502,0.00014246,2]
[399134150,1766123437892,-500.0,0.00014246,2]
[399134151,1766123437901,-234.37612742,0.00014246,2]
[399134152,1766123437930,-265.62387258,0.00014246,2]
[399134153,1766123437939,-189.52634867,0.00014246,2]
[399134154,1766123437948,-500.0,0.00014246,2]
[399134155,1766123437957,-5.73280462,0.00014246,2]
[399134156,1766123437968,-165.56798315,0.00014246,2]
[399134157,1766123437977,-241.25564308,0.00014246,2]
[399134158,1766123437986,-500.0,0.00014246,2]
[399134159,1766123437995,-514.28287046,0.00014246,2]
[399134160,1766123438004,-1139.59895212,0.00014247,2]
[399134161,1766123438013,-1000.0,0.00014247,2]
[399134162,1766123438022,-157.04326763,0.00014247,2]
[399134163,1766123438032,-1000.0,0.00014247,2]
[399134164,1766123438041,-1001.0992649,0.00014247,2]
[399134165,1766123438051,-129.91068162,0.00014247,2]
[399134166,1766123438063,-870.08931838,0.00014247,2]
[399134167,1766123438072,-1000.0,0.00014247,2]
[399134168,1766123438082,-1000.0,0.00014247,2]
[399134169,1766123438091,-1000.0,0.00014247,2]
[399134170,1766123438101,-343.55,0.00014314,2]
[399134171,1766123438110,-500.0,0.00014368,2]
[399134172,1766123438119,-500.0,0.00014368,2]
[399134173,1766123438129,-500.0,0.00014368,2]
[399134174,1766123438139,-962.77356348,0.00014368,2]
[399134175,1766123438148,-1500.0,0.00014368,2]
[399134176,1766123438158,-7547.56856879,0.00014512,2]
[399134177,1766123438173,-1030.4284493,0.00014512,2]
[399134178,1766123438183,-500.0,0.00014529,2]
[399134179,1766123438192,-500.0,0.00014795,2]
[399134180,1766123438202,-915.80736619,0.00014795,2]
[399134181,1766123438221,-584.19263381,0.00014795,2]
[399134182,1766123438230,-910.89201927,0.00014795,2]
[399134183,1766123438240,-393.30847562,0.00014795,2]
[399134184,1766123438251,-414.52661446,0.00014795,2]
[399134185,1766123438261,-1500.0,0.00014795,2]
[399134186,1766123438270,-500.0,0.00014824,2]
[399134187,1766123438279,-500.0,0.00014824,2]
[399134188,1766123438289,-500.0,0.00014824,2]
[399134189,1766123438299,-500.0,0.00014824,2]
[399134190,1766123438308,-381.42982714,0.00014865,2]
[399134191,1766123438320,-19.38017286,0.00014865,2]
[399134192,1766123438329,-1837.421615,0.00014916,2]
[399134193,1766123438338,-517.93709847,0.00015068,2]
[399134194,1766123438348,-300.0,0.00015119,2]
[399134195,1766123438357,-300.0,0.00015119,2]
[399134196,1766123438367,-300.0,0.00015119,2]
[399134197,1766123438377,-300.0,0.00015119,2]
[399134198,1766123438387,-300.0,0.00015119,2]
[399134199,1766123438397,-300.0,0.00015119,2]
[399134200,1766123438407,-300.0,0.00015119,2]
[399134201,1766123438416,-300.0,0.00015119,2]
[399134202,1766123438426,-300.0,0.00015119,2]
[399134203,1766123438435,-300.0,0.00015119,2]
[399134204,1766123438446,-300.0,0.00015119,2]
[399134205,1766123438456,-300.0,0.00015119,2]
[399134206,1766123438469,-300.0,0.00015119,2]
[399134207,1766123438479,-300.0,0.00015119,2]
[399134208,1766123438489,-300.0,0.00015119,2]
[399134209,1766123438499,-500.0,0.00015155,2]
[399134210,1766123438509,-361.40208708,0.00015156,2]
[399134211,1766123438519,-171.51962352,0.00015156,2]
[399134212,1766123438530,-152.90299203,0.00015163,2]
[399134213,1766123438543,-600.0,0.00015197,2]
[399134214,1766123438553,-691.825,0.00015197,2]
[399134215,1766123438562,-166.25947477,0.000152,2]
[399134216,1766123438571,-574.92590317,0.00015315,2]
[399134217,1766123438581,-500.0,0.00015342,2]
[399134218,1766123438590,-1900.05449783,0.00015342,2]
[399134219,1766123438600,-1000.0,0.00015342,2]
[399134220,1766123438612,-280.9140599,0.00015395,2]
[399134221,1766123438622,-458.07,0.00015415,2]